fUSD/lending_fUSD_20240505
["ID","MTS","AMOUNT","RATE_DAILY","PERIOD"]
[325438786,1714891838862,-500.0,0.0003315,8]
[325438787,1714891838871,-154.56697158,0.00033228,7]
[325438788,1714891838880,-157.30064801,0.0003333,7]
[325438789,1714891838889,-160.07176994,0.00033351,7]
[325438790,1714891838898,-182.78653393,0.00033406,7]
[325438791,1714891838907,-500.0,0.00033424,9]
[325438792,1714891838916,-160.57942081,0.00033502,7]
[325438793,1714891838925,-155.99402394,0.00033546,7]
[325438794,1714891838934,-23026.691,0.00033672,2]
[325438795,1714891838943,-5741.0,0.00033672,2]
[325438796,1714891838953,-500.0,0.00033698,10]
[325438797,1714891838961,-159.82096066,0.00033781,2]
[325438798,1714891838970,-154.56697158,0.00033796,7]
[325438799,1714891838979,-160.57942081,0.00033804,7]
[325438800,1714891838988,-1173.42935213,0.00033833,4]
[325438801,1714891838997,-500.0,0.00033972,11]
[325438802,1714891839006,-320.05,0.00034,2]
[325438803,1714891839014,-157.30064801,0.00034193,7]
[325438804,1714891839024,-334.0,0.00034239,5]
[325438805,1714891839033,-500.0,0.00034246,12]
[325438806,1714891839042,-157.30064801,0.00034261,7]
[325438807,1714891839051,-154.56697158,0.00034361,7]
[325438808,1714891839061,-160.57942081,0.00034464,7]
[325438809,1714891839073,-154.56697158,0.00034501,7]
[325438810,1714891839082,-500.0,0.0003452,13]
[325438811,1714891839091,-159.82096066,0.00034557,2]
[325438812,1714891839102,-150.0,0.00034605,2]
[325438813,1714891839111,-150.0,0.00034657,2]
[325438814,1714891839120,-184.74,0.00034719,2]
[325438815,1714891839130,-150.0,0.0003478,2]
[325438816,1714891839141,-160.77,0.00034785,2]
[325438817,1714891839151,-500.0,0.00034794,14]
[325438818,1714891839161,-163.09,0.00034795,2]
[325438819,1714891839170,-163.09,0.00034795,2]
[325438820,1714891839179,-300.58,0.00034795,2]
[325438821,1714891839188,-701.46,0.00034795,2]
[325438822,1714891839198,-301.37,0.00034795,2]
[325438823,1714891839207,-160.81,0.00034795,2]
[325438824,1714891839217,-419.76,0.00034795,2]
[325438825,1714891839227,-150.0,0.00034795,2]
[325438826,1714891839237,-522.83,0.00034795,2]
[325438827,1714891839246,-151.56,0.00034795,2]
[325438828,1714891839257,-163.09,0.00034795,2]
[325438829,1714891839268,-150.0,0.00034795,2]
[325438830,1714891839278,-150.0,0.00034795,2]
[325438831,1714891839287,-163.09,0.00034795,2]
[325438832,1714891839296,-522.83,0.00034795,2]
[325438833,1714891839306,-150.0,0.00034795,2]
[325438834,1714891839316,-419.76,0.00034795,2]
[325438835,1714891839326,-163.09,0.00034795,2]
[325438836,1714891839335,-150.0,0.00034795,2]
[325438837,1714891839345,-150.0,0.00034795,2]
[325438838,1714891839355,-153.78,0.00034795,2]
[325438839,1714891839364,-163.09,0.00034795,2]
[325438840,1714891839374,-419.76,0.00034795,2]
[325438841,1714891839384,-300.0,0.00034795,2]
[325438842,1714891839394,-150.0,0.00034795,2]
[325438843,1714891839577,-163.09,0.00034795,2]
[325438844,1714891839646,-419.76,0.00034795,2]
[325438845,1714891839657,-1000.0,0.00034803,2]
[325438846,1714891839670,-154.56697158,0.00034847,7]
[325438847,1714891839679,-150.0,0.00034855,2]
[325438848,1714891839689,-154.56697158,0.00034891,7]
[325438849,1714891839700,-150.0,0.00034898,2]
[325438850,1714891839711,-154.17335256,0.00034898,7]
[325438851,1714891839721,-4717.05861141,0.000349,2]
[325438880,1714891840375,-1047.2,0.000349,2]
[325438881,1714891840387,-5588.32644724,0.000349,2]
[325438882,1714891840399,-1629.51167026,0.000349,2]
[325438883,1714891840421,-1329.74,0.000349,2]
[325438902,1714891843254,-292.5,0.000349,2]
[325438903,1714891843267,-622.22,0.000349,2]
[325438906,1714891846022,-201.16,0.00029988,10]
[325438907,1714891846032,-150.0,0.00034795,2]
[325438908,1714891846042,-419.76,0.00034795,2]
[325438909,1714891846052,-325.19,0.00034795,2]
[325438910,1714891846065,-263.44994428,0.00034899,4]
[325438911,1714891846077,-427.38343458,0.00034899,4]
[325438912,1714891846087,-1269.89854634,0.000349,2]
[325438913,1714891846354,-578.55133961,0.000349,2]
[325438914,1714891846366,-1403.23900688,0.000349,2]
[325438915,1714891863388,150.0,0.00010993,2]
[325438916,1714891863495,150.0,0.00010993,2]
[325438917,1714891863531,150.0,0.00010993,2]
[325438918,1714891864214,210.0,0.00012092,2]
[325438919,1714891864357,210.0,0.00012092,2]
[325438920,1714891865092,293.0,0.00013302,2]
[325438921,1714891865902,293.0,0.00013302,2]
[325438922,1714891866358,411.0,0.00014632,2]
[325438923,1714891870482,3193.0,0.00013,2]
[325438926,1714892645998,268.22,0.00025738,120]
[325438927,1714892646355,268.22,0.00028598,120]
[325438935,1714892947865,259.81423692,0.0003,120]
[325438936,1714893032161,-833.36001832,0.00012346,2]
[325438937,1714893032173,-537.12016184,0.00012346,2]
[325438945,1714893032327,-657.25,0.00012346,2]
[325438946,1714893032338,-623.17277901,0.00012346,2]
[325438947,1714893032350,-424.97123042,0.00012346,2]
[325438948,1714893032360,-781.72439297,0.00012346,2]
[325438949,1714893032369,-538.65776021,0.00012347,2]
[325438950,1714893032378,-303.64305285,0.00012348,2]
[325438951,1714893032388,-766.80428016,0.00012766,2]
[325438952,1714893032400,-295.29364343,0.00012766,2]
[325438953,1714893032409,-410.46635657,0.00012767,2]
[325438954,1714893032420,-3351.59573749,0.00012767,2]
[325438955,1714893032432,-1450.56957071,0.00012767,2]
[325438956,1714893032441,-533.05127413,0.0001278,2]
[325438957,1714893032453,-4115.67404376,0.000128,2]
[325438958,1714893032464,-12806.7566,0.00012899,2]
[325438959,1714893032473,-2861.25412048,0.000129,2]
[325438960,1714893032510,-644.5883193,0.000129,2]
[325438961,1714893032520,-300.07857715,0.00012998,2]
[325438962,1714893032529,-364.13980716,0.00012998,2]
[325438963,1714893032540,-972.65675151,0.00012998,2]
[325438970,1714893038269,-1490.7756,0.00012998,2]
[325438972,1714893038281,-1347.71677742,0.00012998,2]
[325438974,1714893038291,-1127.95271329,0.00012999,2]
[325438976,1714893038303,-275.96458678,0.00012999,2]
[325438978,1714893038314,-1229.7413409,0.00012999,2]
[325438982,1714893038469,-362.26956143,0.00012999,2]
[325438983,1714893038480,-568.59559293,0.00012999,2]
[325438984,1714893038491,-3499.8,0.00012999,2]
[325438985,1714893038505,-6563.34065266,0.00012999,2]
[325438986,1714893038516,-328.92787868,0.00012999,2]
[325438987,1714893038726,-583.73151527,0.00012999,2]
[325438989,1714893040307,-846.56672,0.00012999,2]
[325438990,1714893040320,-8165.80375038,0.00012999,2]
[325438991,1714893040554,-2546.6116,0.00012999,2]
[325438992,1714893040566,-568.37329392,0.00012999,2]
[325439000,1714893043346,-161.69195164,0.00012869,2]
[325439001,1714893043356,-9036.89239642,0.00012999,2]
[325439002,1714893043366,-5318.32507606,0.00013,2]
[325439003,1714893043492,-8209.17104705,0.00013,2]
[325439046,1714893046352,-1401.88980761,0.00012998,2]
[325439080,1714893046713,-309.20957949,0.00012998,2]
[325439124,1714893137047,173.86,0.00029095,120]
[325439125,1714893219430,1351.42275628,0.00012,2]
[325439126,1714893219452,4000.0,0.00012,2]
[325439127,1714893219475,4000.0,0.00012,2]
[325439128,1714893219497,4000.0,0.00012,2]
[325439129,1714893219521,1819.75175532,0.00012,2]
[325439131,1714893257373,547.52629801,0.00012,2]
[325439132,1714893275377,369.68536916,0.00012,2]
[325439135,1714893508383,298.47108253,0.00012,2]
[325439136,1714893528203,298.47108253,0.00012,2]
[325439137,1714893548211,251.80048429,0.00012,2]
[325439139,1714893676330,150.40416342,0.0001194,2]
[325439148,1714894191201,263.88976474,0.00011944,2]
[325439156,1714894233492,-781.72439297,0.00011943,2]
[325439157,1714894233503,-282.15693226,0.00011944,2]
[325439158,1714894233513,-155.0,0.00012042,2]
[325439159,1714894233523,-3084.72177879,0.00012042,2]
[325439160,1714894233532,-157.97636738,0.00012669,2]
[325439161,1714894233542,-1477.55396935,0.00012868,2]
[325439162,1714894233554,-161.69195165,0.00012869,2]
[325439163,1714894233563,-1251.27923852,0.000129,2]
[325439164,1714894233573,-160.77,0.0001299,2]
[325439165,1714894233582,-428.54752566,0.00012992,2]
[325439166,1714894233591,-499.99,0.00012992,2]
[325439167,1714894233601,-2078.74379686,0.00012998,2]
[325439168,1714894233610,-1144.7771539,0.00012998,2]
[325439169,1714894233620,-2430.33267586,0.00012998,2]
[325439170,1714894233637,-214.24052737,0.00012998,2]
[325439171,1714894233647,-782.7917937,0.00012998,2]
[325439172,1714894233657,-189.84945054,0.00012998,2]
[325439173,1714894233667,-8386.99119289,0.00012999,2]
[325439174,1714894233676,-240834.38593514,0.00013,2]
[325439175,1714894233689,-3895.0644316,0.00013,2]
[325439176,1714894233700,-329.61820133,0.00013,2]
[325439181,1714894233760,-753.98701703,0.00013,2]
[325439183,1714894233771,-1451.19349998,0.00013,2]
[325439246,1714894238508,-30525.58864305,0.00013,2]
[325439247,1714894238518,-5388.65984267,0.00013,2]
[325439248,1714894238797,-658.999999,0.00013,2]
[325439291,1714894240552,-1775.494358,0.00013,2]
[325439292,1714894240566,-466.19948782,0.00013,2]
[325439293,1714894240577,-366.82438155,0.00013,2]
[325439294,1714894240589,-515.1,0.00013,2]
[325439295,1714894240600,-668.88956292,0.00013,2]
[325439296,1714894240731,-277.83064789,0.00013,2]
[325439297,1714894240740,-617.382,0.00013,2]
[325439298,1714894240749,-567.50164,0.00013,2]
[325439299,1714894240757,-442.42958686,0.00013698,5]
[325439300,1714894240882,-355.72425126,0.00013698,5]
[325439301,1714894240906,-201.84616188,0.00013698,5]
[325439302,1714894240913,-400.0,0.000137,2]
[325439303,1714894240921,-1037.30256325,0.00014,2]
[325439304,1714894240928,-166.32,0.00014954,2]
[325439305,1714894240937,-150.0,0.00015291,2]
[325439306,1714894240947,-272.52394202,0.00015322,2]
[325439307,1714894240956,-2296.47,0.00015385,2]
[325439308,1714894240965,-5144.76019742,0.00015396,2]
[325439309,1714894240977,-6378.8,0.00015396,2]
[325439341,1714894247033,-32.40787402,0.00012869,2]
[325439344,1714894451352,320.39,0.00025375,120]
[325439345,1714894451782,320.39,0.00028547,120]
[325439346,1714894563352,150.0,0.00010993,2]
[325439347,1714894615668,-788.18220101,0.0001184,2]
[325439348,1714894615694,-157.97636736,0.00011841,2]
[325439349,1714894615716,-3053.84143163,0.00011941,2]
[325439350,1714894617460,-1396.76233974,0.00011839,2]
[325439351,1714894617484,-1211.91761942,0.00011941,2]
[325439352,1714894624402,-1002.59231789,0.00011942,2]
[325439353,1714894624426,-2285.22235922,0.00011944,2]
[325439354,1714894624448,-6712.18532289,0.00012,2]
[325439356,1714894659720,1391.32004084,0.00010993,2]
[325439357,1714894659742,4000.0,0.00010993,2]
[325439358,1714894659764,4000.0,0.00010993,2]
[325439359,1714894659788,608.67995915,0.00010993,2]
[325439360,1714894747857,150.0,0.00010993,2]
[325439361,1714894748006,150.0,0.00010993,2]
[325439362,1714894769404,2570.6474,0.00011899,2]
[325439363,1714894924099,344.98288347,0.00011899,2]
[325439364,1714894931446,175.68975738,0.00011899,2]
[325439365,1714894931468,126.4039337,0.00011899,2]
[325439366,1714894951077,215.12035675,0.00011899,2]
[325439367,1714895092621,164.67792233,0.00011899,2]
[325439376,1714895291778,-524.63852886,0.00011996,2]
[325439377,1714895291799,-781.72439297,0.00011997,2]
[325439378,1714895291821,-1422.68459498,0.00012,2]
[325439379,1714895306686,-1000.0,0.00013698,5]
[325439380,1714895306706,-538.36696195,0.00013998,2]
[325439381,1714895306728,-218.74357535,0.00014,2]
[325439382,1714895313798,-1429.352568,0.00015317,2]
[325439383,1714895313820,-367.82513,0.00015396,2]
[325439384,1714895313843,-787.58875702,0.00016409,2]
[325439385,1714895313865,-367.82514,0.0001641,2]
[325439386,1714895313886,-499.99,0.0001726,2]
[325439387,1714895313907,-227.28,0.00017367,2]
[325439388,1714895313928,-367.82514,0.0001766,2]
[325439389,1714895313949,-367.82514,0.0001891,2]
[325439390,1714895324051,-8098.33007087,0.00019384,2]
[325439409,1714895431439,-2308.786102,0.00019287,2]
[325439410,1714895431449,-4384.79114323,0.00019371,2]
[325439411,1714895431463,-1698.97773378,0.00019371,2]
[325439412,1714895431532,-2586.83604523,0.00019371,2]
[325439413,1714895431550,-815.37208088,0.00019371,2]
[325439414,1714895431561,-371.6925449,0.00019371,2]
[325439415,1714895431590,-292.6616936,0.00019371,2]
[325439416,1714895431672,-271.05628702,0.00019371,2]
[325439417,1714895431684,-612.76280106,0.00019371,2]
[325439418,1714895431694,-183.91257,0.00019384,2]
[325439419,1714895431703,-2203.32462894,0.00019384,2]
[325439420,1714895431714,-1172.54,0.00019384,2]
[325439447,1714895437465,-4470.90884912,0.00019384,2]
[325439448,1714895437479,-13368.89645107,0.00019384,2]
[325439449,1714895437488,-500.0,0.00019847,2]
[325439450,1714895437498,-500.0,0.00019856,2]
[325439451,1714895437507,-500.0,0.00019865,2]
[325439452,1714895437517,-500.0,0.00019874,2]
[325439453,1714895437527,-500.0,0.00019882,2]
[325439454,1714895437537,-500.0,0.00019891,2]
[325439455,1714895437548,-500.0,0.000199,2]
[325439456,1714895437559,-515.0,0.000205,2]
[325439457,1714895437570,-2109.0,0.000205,2]
[325439458,1714895437579,-800.0,0.00020502,2]
[325439459,1714895437589,-173.07,0.00020888,2]
[325439460,1714895437598,-155.0,0.000209,2]
[325439461,1714895437607,-155.0,0.000209,2]
[325439462,1714895437617,-250.0,0.00021248,2]
[325439463,1714895437626,-164.67792233,0.0002136,2]
[325439464,1714895437636,-166.41,0.00021644,2]
[325439465,1714895437645,-151.39,0.00021644,2]
[325439466,1714895437655,-156.04,0.00021692,2]
[325439467,1714895437664,-10330.41562659,0.00021709,2]
[325439481,1714895438695,-319.96,0.00021709,2]
[325439482,1714895438707,-1017.8135551,0.00021709,2]
[325439483,1714895438719,-6399.2,0.00021709,2]
[325439484,1714895438748,-5832.61081831,0.00021709,2]
[325439485,1714895438758,-173.86,0.00022331,2]
[325439486,1714895438768,-214.77,0.00022482,2]
[325439487,1714895438777,-2000.0,0.0002249,2]
[325439488,1714895438787,-605.23233385,0.00022496,2]
[325439489,1714895438798,-1647.48766615,0.00022496,2]
[325439490,1714895438808,-2688.64,0.00022612,2]
[325439491,1714895438818,-250.0,0.00022653,2]
[325439492,1714895438828,-500.0,0.00022663,2]
[325439493,1714895438838,-166.9,0.00022787,2]
[325439494,1714895438847,-1000.0,0.00022999,2]
[325439495,1714895438856,-17696.62084202,0.00023,2]
[325439496,1714895438866,-392.81997156,0.00023064,2]
[325439497,1714895438891,-289.47602467,0.00023064,2]
[325439498,1714895438914,-117.70400377,0.00023064,2]
[325439499,1714895438924,-166.9,0.00023183,2]
[325439500,1714895438934,-166.9,0.00023579,2]
[325439501,1714895438944,-166.9,0.00023975,2]
[325439502,1714895438954,-183.91257,0.00024384,2]
[325439503,1714895438963,-800.0,0.00025627,2]
[325439504,1714895438973,-781.72439297,0.00026999,2]
[325439505,1714895438983,-150.0,0.00027,2]
[325439506,1714895438993,-800.0,0.0002819,2]
[325439507,1714895439002,-167.64,0.00028509,10]
[325439508,1714895439011,-838.2,0.00028509,10]
[325439509,1714895439021,-4587.97821425,0.00028519,2]
[325439510,1714895439030,-622.20002294,0.00028545,2]
[325439511,1714895439040,-155.0,0.00028545,2]
[325439512,1714895439049,-201.04360912,0.00028545,2]
[325439513,1714895439060,-305.64014606,0.00028545,2]
[325439514,1714895439070,-326.04628581,0.00028545,2]
[325439515,1714895439082,-4279.48018012,0.00028545,2]
[325439516,1714895439091,-155.24838402,0.00028545,2]
[325439517,1714895439101,-155.3108492,0.00028545,2]
[325439518,1714895439112,-527.60952804,0.00028545,2]
[325439519,1714895439123,-292.52182384,0.00028545,2]
[325439520,1714895439132,-177.54622384,0.00028546,2]
[325439521,1714895439142,-3902.47239586,0.00028546,2]
[325439522,1714895439159,-711.2364359,0.00028546,2]
[325439523,1714895439168,-297.63153415,0.00028547,14]
[325439525,1714895439751,-250.0,0.00027077,2]
[325439526,1714895439761,-198.20080163,0.00028547,14]
[325439527,1714895439815,-343.39614968,0.00028547,14]
[325439528,1714895439854,-9043.36909893,0.00028547,14]
[325439651,1714895445511,-781.25125644,0.00028547,14]
[325439652,1714895445617,-714.41660183,0.00028547,14]
[325439653,1714895445630,-1065.18041574,0.00028547,14]
[325439654,1714895445661,-518.90570714,0.00028547,14]
[325439655,1714895445673,-4873.61110047,0.00028547,14]
[325439656,1714895445684,-16526.72466841,0.00028547,14]
[325439657,1714895445710,-1661.72699999,0.00028547,14]
[325439666,1714895490076,211.26,0.00028637,120]
[325439668,1714895589515,-1212.20342963,0.0001299,2]
[325439669,1714895589536,-781.72439297,0.00012991,2]
[325439670,1714895589559,-685.0391656,0.00012992,2]
[325439671,1714895589578,-711.29680652,0.00012992,2]
[325439672,1714895589598,-1778.80151478,0.00012993,2]
[325439673,1714895589617,-3279.04154518,0.00012993,2]
[325439674,1714895589636,-707.48452441,0.00012994,2]
[325439675,1714895589655,-2218.26332743,0.00012995,2]
[325439676,1714895589673,-2478.78749712,0.00012995,2]
[325439677,1714895589693,-3147.35779636,0.00012995,2]
[325439678,1714895590364,3493.79778722,0.00011,2]
[325439679,1714895590386,4000.0,0.00011,2]
[325439680,1714895590406,4000.0,0.00011,2]
[325439681,1714895590426,4000.0,0.00011,2]
[325439682,1714895590447,4000.0,0.00011,2]
[325439683,1714895590470,4000.0,0.00011,2]
[325439684,1714895590490,3975.29678423,0.00011,2]
[325439685,1714895634231,-2000.0,0.00012995,2]
[325439686,1714895738865,-2218.26332743,0.00012922,2]
[325439687,1714895738884,-1778.80151478,0.00012923,2]
[325439688,1714895738904,-781.72439297,0.00012924,2]
[325439689,1714895738923,-538.65776021,0.00012925,2]
[325439690,1714895738943,-2263.0,0.00012926,2]
[325439691,1714895738963,-2419.55300461,0.00012995,2]
[325439692,1714895740315,-4690.16086783,0.00012995,2]
[325439693,1714895740341,-711.84980966,0.00012998,2]
[325439694,1714895740364,-2284.00624,0.00012998,2]
[325439695,1714895740385,-211.42088076,0.00012998,2]
[325439696,1714895740404,-787.58875702,0.00012998,2]
[325439697,1714895740428,-1314.97344473,0.00012998,2]
[325439698,1714895742105,-1163.81405239,0.00012998,2]
[325439699,1714895742126,-1154.74755341,0.00012999,2]
[325439700,1714895742146,-586.35191901,0.00012999,2]
[325439701,1714895742168,-7095.08647519,0.00013,2]
[325439702,1714895743800,-10000.0,0.00013,2]
[325439703,1714895745183,-10000.0,0.00013,2]
[325439704,1714895746755,-10000.0,0.00013,2]
[325439705,1714895748620,-1429.352568,0.0001293,2]
[325439706,1714895748643,-8570.647432,0.00013,2]
[325439707,1714895749842,-10000.0,0.00013,2]
[325439708,1714895752673,-10000.0,0.00013,2]
[325439709,1714895754035,-197.15256784,0.00012999,2]
[325439710,1714895754056,-546.98722626,0.00012999,2]
[325439711,1714895754080,-9255.8602059,0.00013,2]
[325439712,1714895754924,-10000.0,0.00013,2]
[325439713,1714895756255,-10000.0,0.00013,2]
[325439714,1714895757898,-10000.0,0.00013,2]
[325439715,1714895759388,-10000.0,0.00013,2]
[325439716,1714895760802,-10000.0,0.00013,2]
[325439717,1714895762463,-10000.0,0.00013,2]
[325439718,1714895764272,-10000.0,0.00013,2]
[325439719,1714895765782,-10000.0,0.00013,2]
[325439720,1714895767601,-10000.0,0.00013,2]
[325439721,1714895769862,-2545.88179635,0.00013,2]
[325439722,1714895769885,-7454.11820365,0.00013,2]
[325439723,1714895771539,-10000.0,0.00013,2]
[325439777,1714896631637,-207.05329635,0.00012799,2]
[325439778,1714896631648,-162.95248977,0.000128,2]
[325439779,1714896631658,-867.5909391,0.00012899,2]
[325439780,1714896631689,-1350.67238833,0.00012899,2]
[325439781,1714896631698,-467.5389,0.000129,2]
[325439782,1714896631709,-625.63961926,0.000129,2]
[325439783,1714896631719,-155.0,0.00012999,2]
[325439784,1714896631728,-7662.24885584,0.00013,2]
[325439785,1714896631737,-55114.27534335,0.00013,2]
[325439786,1714896631749,-166.95,0.0001355,2]
[325439787,1714896631758,-1000.0,0.00013698,5]
[325439788,1714896631767,-300.0,0.000137,2]
[325439789,1714896631777,-162.95248977,0.00015872,2]
[325439790,1714896631786,-662.62,0.00015872,2]
[325439791,1714896631795,-499.99,0.00015872,2]
[325439792,1714896631805,-760.0,0.00015884,2]
[325439793,1714896631815,-227.0,0.00016087,2]
[325439794,1714896631824,-1002.89891515,0.00016187,2]
[325439795,1714896631834,-333.21,0.00016281,2]
[325439796,1714896631843,-10000.0,0.00016313,2]
[325439797,1714896632235,-250.0,0.0001642,2]
[325439798,1714896632246,-1225.21326046,0.000165,2]
[325439799,1714896632256,-1912.06390101,0.00016828,2]
[325439800,1714896632266,-154.21,0.00016835,2]
[325439801,1714896632275,-625.63961926,0.000169,2]
[325439802,1714896632285,-166.95,0.00016937,2]
[325439803,1714896632295,-4587.97821425,0.00016982,2]
[325439804,1714896632304,-179.81,0.0001699,2]
[325439805,1714896632313,-782.47827159,0.00016998,2]
[325439806,1714896632323,-155.0,0.00016998,2]
[325439807,1714896632332,-155.33612654,0.00016998,2]
[325439808,1714896632342,-3802.4238643,0.00016998,2]
[325439809,1714896632352,-155.34794006,0.00016998,2]
[325439810,1714896632362,-155.0,0.00016998,2]
[325439811,1714896632371,-8446.32696543,0.00016998,2]
[325439812,1714896632381,-3278.12915811,0.00016998,2]
[325439814,1714896632390,-155.17043795,0.00016998,2]
[325439815,1714896632399,-155.20214776,0.00016998,2]
[325439816,1714896632408,-17631.03098358,0.00016999,2]
[325439817,1714896632530,-8126.44813225,0.00016999,2]
[325439823,1714896638184,-23603.06127217,0.00016999,2]
[325439824,1714896638209,-74065.89514443,0.00016999,2]
[325439825,1714896638219,-16542.10434185,0.00017,2]
[325439826,1714896638256,-473.64023874,0.00017,2]
[325439834,1714896639779,-7832.36363727,0.00017,2]
[325439835,1714896639790,-407.14,0.00017,2]
[325439844,1714896642826,-363.43687377,0.00017,2]
[325439845,1714896642837,-489.80643633,0.00017,2]
[325439846,1714896642929,-40192.87288159,0.00017,2]
[325439847,1714896642939,-23900.0,0.00017058,2]
[325439848,1714896642948,-150.0,0.00017202,2]
[325439849,1714896642957,-166.32,0.00017314,2]
[325439850,1714896642969,-154.21,0.00017712,2]
[325439851,1714896642979,-760.0,0.00017869,2]
[325439852,1714896642988,-4084.72404926,0.0001788,2]
[325439853,1714896642997,-227.0,0.00018098,2]
[325439854,1714896643007,-162.95248977,0.00018944,2]
[325439855,1714896643016,-4084.72404923,0.00018968,2]
[325439856,1714896643025,-473.64023874,0.00019,5]
[325439857,1714896643035,-500.0,0.00019178,2]
[325439858,1714896643044,-244.6909971,0.00019178,2]
[325439859,1714896643054,-305.06236416,0.00019384,2]
[325439860,1714896643063,-358.98806646,0.00019384,2]
[325439861,1714896643072,-3128.14812005,0.00019729,2]
[325439862,1714896643082,-525.13,0.00019753,2]
[325439863,1714896643091,-500.0,0.00019768,2]
[325439864,1714896643102,-500.0,0.00019777,2]
[325439865,1714896643112,-800.0,0.00019781,2]
[325439866,1714896643121,-800.0,0.00019781,2]
[325439867,1714896643130,-500.0,0.00019786,2]
[325439868,1714896643140,-500.0,0.00019794,2]
[325439869,1714896643149,-500.0,0.00019803,2]
[325439870,1714896643158,-800.0,0.00019808,2]
[325439871,1714896643167,-500.0,0.00019812,2]
[325439872,1714896643177,-500.0,0.00019821,2]
[325439873,1714896643187,-500.0,0.0001983,2]
[325439874,1714896643196,-500.0,0.00019838,2]
[325439875,1714896643206,-760.0,0.00019855,2]
[325439876,1714896643216,-227.0,0.00020109,2]
[325439877,1714896643226,-489.0,0.000203,2]
[325439878,1714896643235,-166.95,0.00020324,2]
[325439879,1714896643244,-155.0,0.000209,2]
[325439881,1714896643253,-800.0,0.00021014,2]
[325439883,1714896643262,-4084.72404923,0.00021037,2]
[325439885,1714896643272,-155.77,0.00021644,2]
[325439886,1714896643281,-166.41,0.00021644,2]
[325439887,1714896643290,-1309.296743,0.00021644,2]
[325439888,1714896643299,-1309.296743,0.00021644,2]
[325439889,1714896643308,-760.0,0.0002184,2]
[325439890,1714896643317,-250.0,0.00021918,2]
[325439891,1714896643326,-1681.92,0.00021918,2]
[325439892,1714896643336,-162.95248977,0.00022016,2]
[325439893,1714896643346,-227.0,0.0002212,2]
[325439894,1714896643355,-800.0,0.00022164,2]
[325439895,1714896643364,-2068.63499292,0.00022356,2]
[325439896,1714896643390,-1059.51312713,0.00022356,2]
[325439897,1714896643399,-2202.726027,0.00023105,7]
[325439898,1714896643408,-2202.726027,0.00023105,7]
[325439899,1714896643418,-4084.72404923,0.00023105,2]
[325439900,1714896643427,-760.0,0.00023825,2]
[325439901,1714896643437,-3000.0,0.00024,2]
[325439902,1714896643446,-227.0,0.00024131,2]
[325439903,1714896643456,-180.0,0.0002423,2]
[325439904,1714896643465,-3128.14812005,0.00024983,2]
[325439905,1714896643476,-271.06054742,0.00025,2]
[325439906,1714896643485,-162.95248977,0.00025088,2]
[325439907,1714896643495,-4084.72404923,0.00025174,2]
[325439908,1714896643504,-155.55321902,0.00027,2]
[325439909,1714896643514,-180.51,0.00027218,2]
[325439910,1714896643523,-4084.72404923,0.00027242,2]
[325439911,1714896643532,-151.28,0.00027397,2]
[325439912,1714896643542,-3128.14812005,0.00027609,2]
[325439913,1714896643551,-1000.0,0.00028156,2]
[325439914,1714896643560,-7661.768462,0.00028157,3]
[325439915,1714896643570,-1309.296743,0.00028157,7]
[325439916,1714896643579,-1309.296743,0.00028157,7]
[325439917,1714896643734,-10000.0,0.00028157,2]
[325439918,1714896643744,-162.95248977,0.0002816,2]
[325439919,1714896643753,-150.0,0.000285,2]
[325439920,1714896643763,-342.0,0.000285,2]
[325439921,1714896643772,-427.51019987,0.00028531,2]
[325439922,1714896643781,-179.81,0.00028537,2]
[325439923,1714896643791,-2352.37272208,0.00028545,2]
[325439924,1714896643799,-155.43947104,0.00028545,2]